[Event "CZE-ch Youth B12 2022"]
[Site "Luhacovice"]
[Date "2022.03.19"]
[Round "9.5"]
[White "Soucek, Andrej"]
[Black "Roubal, Matyas"]
[Result "0-1"]
[ECO "B30"]
[WhiteElo "1399"]
[BlackElo "1870"]
[Annotator "NA"]
[PlyCount "82"]
[EventDate "2022.03.12"]
[EventType "swiss"]
[EventCountry "CZE"]
[SourceTitle "playchess.com"]
[Source "ChessBase"]
[SourceQuality "1"]
[TimeControl "5400+30"]

1. e4 {[%emt 0:00:03]} c5 {[%emt 0:00:10]} 2. Nf3 {[%emt 0:00:17]} Nc6 {[%emt 0:00:07]} 3. Bb5 {[%emt 0:00:06]} e5 {[%emt 0:01:38]} 4. O-O {[%emt 0:02:02]} Nge7 {[%emt 0:01:09]} 5. Nc3 {[%emt 0:01:01]} d6 {[%emt 0:03:13]} 6. h3 {[%emt 0:01:35]} a6 {[%emt 0:00:30]} 7. Be2 {[%emt 0:01:36]} b5 {[%emt 0:05:21]} 8. d3 {[%emt 0:04:09]} Ng6 {[%emt 0:10:02]} 9. Nh2 {[%emt 0:08:31]} (9. a4 $14 {is more appropriate.}) 9... Be7 {[%emt 0:03:06]} 10. Bg4 {[%emt 0:07:18]} Bb7 {[%emt 0:07:02]} 11. Bf5 {[%emt 0:03:51]} O-O {[%emt 0:02:33]} 12. Ng4 {[%emt 0:01:36]} Nh4 {[%emt 0:02:20]} 13. Ne3 {[%emt 0:00:48]} Nxf5 {[%emt 0:05:52]} 14. Nxf5 {[%emt 0:01:15]} Nd4 {[%emt 0:04:24]} 15. Ne3 {[%emt 0:12:37]} f5 {[%emt 0:02:10]} 16. Ned5 {[%emt 0:11:37]} f4 {[%emt 0:02:23]} 17. Nxe7+ {[%emt 0:00:56]} Qxe7 {[%emt 0:00:05]} 18. f3 $17 {[%emt 0:00:27]} Qg5 {[%emt 0:03:19]} 19. Kh1 {[%emt 0:04:15]} Rf6 {[%emt 0:00:37]} 20. Qd2 {[%emt 0:01:50]} Rh6 {[%emt 0:00:28]} 21. Qf2 {[%emt 0:01:05]} Bc8 {[%emt 0:00:07]} 22. Kh2 {[%emt 0:00:06]} Bd7 {[%emt 0:04:20]} 23. Ne2 {[%emt 0:06:51]} Nxe2 {[%emt 0:00:16]} 24. Qxe2 {[%emt 0:00:05]} Qg3+ {[%emt 0:00:02]} 25. Kg1 {[%emt 0:00:36]} Rxh3 {[%emt 0:00:26]} 26. c3 {[%emt 0:02:42]} Rf8 {[%emt 0:04:48]} 27. Qe1 {[%emt 0:03:12]} Qg5 {[%emt 0:00:49]} 28. d4 {[%emt 0:01:27]} Rg3 {[%emt 0:01:20]} 29. Qd2 {[%emt 0:00:27]} Bh3 {[%emt 0:06:16]} 30. Rf2 {[%emt 0:00:51]} Rf6 {[%emt 0:01:16]} 31. dxc5 {[%emt 0:00:00]} dxc5 {[%emt 0:01:54]} 32. Qd5+ {[%emt 0:01:04]} Kf8 {[%emt 0:00:09]} 33. Qxc5+ {[%emt 0:00:25]} Kf7 {[%emt 0:00:13]} 34. Qd5+ {[%emt 0:00:08]} Kg6 {[%emt 0:01:01]} 35. Qd2 {[%emt 0:00:33]} Kh6 {[%emt 0:00:22]} 36. Kf1 {[%emt 0:00:19]} Rxg2 {[%emt 0:01:17]} 37. Ke1 {[%emt 0:03:00]} Qg3 {[%emt 0:00:42]} 38. Qe2 {[%emt 0:01:36]} Rd6 {[%emt 0:00:33]} 39. Bxf4+ {[%emt 0:03:21]} exf4 {[%emt 0:00:08]} 40. e5 {[%emt 0:00:24]} Rg1+ {[%emt 0:00:09]} 41. Qf1 {[%emt 0:00:20]} Rxf1+ {[%emt 0:00:05]} 0-1

[Event "CZE-ch Youth B12 2022"]
[Site "Luhacovice"]
[Date "2022.03.19"]
[Round "9.6"]
[White "Krautschneider, Daniel Jan"]
[Black "Kroulik, Vaclav"]
[Result "0-1"]
[ECO "B22"]
[WhiteElo "1304"]
[BlackElo "1645"]
[Annotator "NA"]
[PlyCount "70"]
[EventDate "2022.03.12"]
[EventType "swiss"]
[EventCountry "CZE"]
[SourceTitle "playchess.com"]
[Source "ChessBase"]
[SourceQuality "1"]
[TimeControl "5400+30"]

1. e4 {[%emt 0:00:03]} c5 {[%emt 0:00:05]} 2. c3 {[%emt 0:00:07]} Nf6 {[%emt 0:00:18]} 3. e5 {[%emt 0:00:19]} Nd5 {[%emt 0:00:06]} 4. Nf3 {[%emt 0:00:07]} Nc6 {[%emt 0:00:19]} 5. d4 {[%emt 0:00:05]} cxd4 {[%emt 0:00:06]} 6. cxd4 {[%emt 0:00:00]} e6 {[%emt 0:00:00]} 7. Nc3 {[%emt 0:02:02]} Nxc3 {[%emt 0:02:00]} 8. bxc3 {[%emt 0:00:10]} d5 {[%emt 0:00:18]} 9. Bd3 {[%emt 0:01:18]} Bd7 {[%emt 0:00:47]} 10. Rb1 {[%emt 0:01:02]} Qc7 {[%emt 0:00:54]} 11. Bd2 {[%emt 0:00:38]} Be7 {[%emt 0:00:40]} 12. Qc2 {[%emt 0:01:05]} Rc8 {[%emt 0:06:46]} 13. Bxh7 {[%emt 0:03:18]} Nb4 {[%emt 0:03:22]} 14. Qb2 {[%emt 0:12:22]} Rxh7 {[%emt 0:04:43]} 15. cxb4 {[%emt 0:00:10]} Bb5 {[%emt 0:02:42]} 16. Rc1 {[%emt 0:07:54]} Bc4 {[%emt 0:00:51]} 17. Qc2 {[%emt 0:09:09]} Rh8 {[%emt 0:01:32]} 18. a3 {[%emt 0:07:23]} Kd7 {[%emt 0:03:21]} 19. Be3 {[%emt 0:01:44]} Qb6 {[%emt 0:05:29]} 20. Kd2 {[%emt 0:02:53]} Qb5 {[%emt 0:04:31]} 21. Qb1 {[%emt 0:07:58]} a5 {[%emt 0:02:33]} 22. Qb2 {[%emt 0:21:44]} axb4 {[%emt 0:01:27]} 23. Ne1 {[%emt 0:04:00]} Qa5 {[%emt 0:01:57]} 24. Kd1 {[%emt 0:04:43]} bxa3 {[%emt 0:01:57]} 25. Qa1 {[%emt 0:03:48]} b5 {[%emt 0:03:24]} 26. Nc2 {[%emt 0:00:35]} b4 {[%emt 0:00:16]} 27. Bd2 {[%emt 0:00:11]} Bb3 {[%emt 0:01:41]} 28. Qb1 {[%emt 0:01:17]} Bxc2+ {[%emt 0:00:28]} 29. Rxc2 {[%emt 0:00:19]} Rxc2 {[%emt 0:00:15]} 30. Kxc2 {[%emt 0:00:32]} Qa4+ {[%emt 0:01:15]} 31. Kd3 {[%emt 0:00:14]} b3 {[%emt 0:00:47]} 32. Rc1 {[%emt 0:00:22]} b2 {[%emt 0:01:41]} 33. Rc3 {[%emt 0:00:31]} Qb5+ {[%emt 0:00:53]} 34. Kc2 {[%emt 0:00:20]} Rb8 {[%emt 0:00:22]} 35. Rxa3 {[%emt 0:00:42]} Bxa3 {[%emt 0:00:09]} 0-1

[Event "CZE-ch Youth B12 2022"]
[Site "Luhacovice"]
[Date "2022.03.19"]
[Round "9.7"]
[White "Topencik, Bruno"]
[Black "Chon, Jeremy"]
[Result "1/2-1/2"]
[ECO "D31"]
[WhiteElo "1339"]
[BlackElo "1455"]
[Annotator "NA"]
[PlyCount "64"]
[EventDate "2022.03.12"]
[EventType "swiss"]
[EventCountry "CZE"]
[SourceTitle "playchess.com"]
[Source "ChessBase"]
[SourceQuality "1"]
[TimeControl "5400+30"]

1. d4 {[%emt 0:00:03]} d5 {[%emt 0:00:01]} 2. c4 {[%emt 0:00:10]} e6 {[%emt 0:00:01]} 3. Nc3 {[%emt 0:00:13]} f5 {[%emt 0:00:02]} 4. Bf4 {[%emt 0:01:32]} Bd6 {[%emt 0:01:11]} 5. Bxd6 {[%emt 0:01:08]} Qxd6 {[%emt 0:00:14]} 6. e3 {[%emt 0:01:30]} Nf6 {[%emt 0:01:36]} 7. Nf3 {[%emt 0:04:22]} c6 {[%emt 0:05:34]} 8. c5 {[%emt 0:03:11]} Qe7 {[%emt 0:01:24]} 9. Ne5 {[%emt 0:00:41]} Nbd7 {[%emt 0:03:30]} 10. f4 {[%emt 0:02:47]} O-O {[%emt 0:02:47]} 11. Bd3 {[%emt 0:03:51]} Ne4 {[%emt 0:03:42]} 12. Bxe4 {[%emt 0:06:40]} fxe4 {[%emt 0:00:06]} 13. O-O {[%emt 0:01:30]} Rf6 {[%emt 0:07:53]} 14. Qe2 {[%emt 0:04:19]} Qe8 {[%emt 0:14:37]} 15. b4 {[%emt 0:03:06]} Rh6 {[%emt 0:11:27]} 16. Nxd7 {[%emt 0:07:43]} Bxd7 {[%emt 0:00:20]} 17. Nd1 {[%emt 0:02:15]} Qd8 {[%emt 0:03:47]} 18. Nf2 {[%emt 0:06:44]} Qh4 {[%emt 0:16:31]} 19. Ng4 {[%emt 0:01:32]} Rh5 {[%emt 0:03:56]} 20. g3 {[%emt 0:01:15]} Qh3 {[%emt 0:00:54]} 21. Ne5 {[%emt 0:01:41]} Be8 {[%emt 0:02:17]} 22. Qg2 {[%emt 0:01:32]} Qxg2+ {[%emt 0:02:45]} 23. Kxg2 {[%emt 0:00:17]} Rf5 {[%emt 0:01:24]} 24. Rfb1 {[%emt 0:03:34]} Rf8 {[%emt 0:02:03]} 25. a4 {[%emt 0:01:17]} a6 {[%emt 0:01:05]} 26. a5 {[%emt 0:01:58]} Rc8 {[%emt 0:00:52]} 27. Rg1 {[%emt 0:01:06]} Rc7 {[%emt 0:00:39]} 28. Raf1 {[%emt 0:00:34]} g6 {[%emt 0:01:26]} 29. g4 {[%emt 0:02:10]} Rg7 {[%emt 0:00:54]} 30. h4 {[%emt 0:01:07]} h6 {[%emt 0:01:08]} 31. Kh2 {[%emt 0:05:39]} Kh7 {[%emt 0:03:55]} 32. g5 {[%emt 0:00:31]} h5 {[%emt 0:00:26]} 1/2-1/2

[Event "CZE-ch Youth B12 2022"]
[Site "Luhacovice"]
[Date "2022.03.19"]
[Round "9.8"]
[White "Letal, Hynek"]
[Black "Kozdon, Marek"]
[Result "1-0"]
[ECO "B40"]
[WhiteElo "1371"]
[BlackElo "1183"]
[Annotator "NA"]
[PlyCount "149"]
[EventDate "2022.03.12"]
[EventType "swiss"]
[EventCountry "CZE"]
[SourceTitle "playchess.com"]
[Source "ChessBase"]
[SourceQuality "1"]
[TimeControl "5400+30"]

1. e4 {[%emt 0:00:03]} c5 {[%emt 0:00:06]} 2. Nf3 {[%emt 0:00:13]} e6 {[%emt 0:00:12]} 3. g3 {[%emt 0:00:24]} a6 {[%emt 0:05:04]} 4. Bg2 {[%emt 0:00:50]} Qc7 {[%emt 0:02:38]} 5. O-O {[%emt 0:00:55]} d6 {[%emt 0:01:42]} 6. c3 {[%emt 0:01:20]} Nf6 {[%emt 0:03:53]} 7. Re1 {[%emt 0:02:29]} b5 {[%emt 0:03:40]} 8. d4 {[%emt 0:03:23]} cxd4 {[%emt 0:02:40]} 9. cxd4 {[%emt 0:01:22]} Bb7 {[%emt 0:01:42]} 10. a3 {[%emt 0:04:06]} Nxe4 {[%emt 0:01:14]} 11. Qd3 {[%emt 0:07:04]} Nf6 {[%emt 0:01:21]} 12. Nc3 {[%emt 0:02:16]} Nbd7 {[%emt 0:01:01]} 13. Bf4 {[%emt 0:04:03]} Rc8 {[%emt 0:02:54]} 14. Rac1 {[%emt 0:03:20]} Qc4 {[%emt 0:00:38]} 15. Qd2 {[%emt 0:06:18]} Qb3 {[%emt 0:07:21]} 16. Qe2 {[%emt 0:08:53]} Be7 {[%emt 0:02:02]} 17. Bh3 {[%emt 0:12:16]} Qc4 {[%emt 0:04:26]} 18. Qe3 {[%emt 0:02:54]} Qb3 {[%emt 0:00:53]} 19. Re2 {[%emt 0:01:30]} O-O {[%emt 0:01:18]} 20. Bg2 {[%emt 0:04:13]} Nd5 {[%emt 0:03:01]} 21. Nxd5 {[%emt 0:02:31]} Bxd5 {[%emt 0:00:48]} 22. Rxc8 {[%emt 0:01:00]} Rxc8 {[%emt 0:00:15]} 23. Qxb3 {[%emt 0:00:39]} Bxb3 {[%emt 0:00:06]} 24. Re3 {[%emt 0:01:54]} Bd5 {[%emt 0:00:34]} 25. Bh3 {[%emt 0:02:39]} Rc2 {[%emt 0:01:14]} 26. b4 {[%emt 0:01:42]} Nb6 {[%emt 0:01:11]} 27. Ne1 {[%emt 0:02:06]} Rc1 {[%emt 0:00:33]} 28. Bf1 {[%emt 0:01:30]} Ra1 {[%emt 0:00:56]} 29. Nc2 {[%emt 0:01:15]} Ra2 {[%emt 0:01:18]} 30. Rc3 {[%emt 0:01:45]} Bc4 {[%emt 0:02:00]} 31. Bxc4 {[%emt 0:00:51]} Nxc4 {[%emt 0:00:36]} 32. Kf1 {[%emt 0:00:44]} g5 {[%emt 0:01:20]} 33. Bc1 {[%emt 0:01:09]} Bf6 {[%emt 0:00:34]} 34. Ke1 {[%emt 0:01:31]} Kg7 {[%emt 0:01:09]} 35. Kd1 {[%emt 0:01:23]} Kg6 {[%emt 0:00:52]} 36. Be3 {[%emt 0:02:15]} d5 {[%emt 0:00:39]} 37. Kc1 {[%emt 0:00:48]} Rb2 {[%emt 0:01:34]} 38. Rxc4 {[%emt 0:00:28]} dxc4 {[%emt 0:00:43]} 39. Kxb2 {[%emt 0:00:07]} Kf5 {[%emt 0:00:16]} 40. Kc3 {[%emt 0:00:16]} Kg4 {[%emt 0:00:32]} 41. Ne1 {[%emt 0:00:25]} Kh3 {[%emt 0:00:20]} 42. a4 {[%emt 0:00:46]} g4 {[%emt 0:00:19]} 43. axb5 {[%emt 0:00:26]} axb5 {[%emt 0:00:07]} 44. Nc2 {[%emt 0:00:07]} h5 {[%emt 0:00:25]} 45. Na3 {[%emt 0:00:16]} Kxh2 {[%emt 0:00:16]} 46. Bf4 {[%emt 0:00:38]} Kg2 {[%emt 0:00:21]} 47. Nxb5 {[%emt 0:00:38]} Kxf2 {[%emt 0:00:46]} 48. Nd6 {[%emt 0:00:21]} Kf3 {[%emt 0:00:28]} 49. b5 {[%emt 0:01:10]} Bd8 {[%emt 0:00:58]} 50. Nxf7 {[%emt 0:00:37]} Bb6 {[%emt 0:00:39]} 51. Kxc4 {[%emt 0:00:46]} h4 {[%emt 0:01:02]} 52. Ne5+ {[%emt 0:00:18]} Ke4 {[%emt 0:00:20]} 53. Nxg4 {[%emt 0:01:17]} hxg3 {[%emt 0:00:30]} 54. Bxg3 {[%emt 0:00:14]} Kf3 {[%emt 0:00:24]} 55. Bd6 {[%emt 0:00:38]} Kxg4 {[%emt 0:00:37]} 56. Bc5 {[%emt 0:00:21]} Bc7 {[%emt 0:00:17]} 57. b6 {[%emt 0:00:30]} Bb8 {[%emt 0:00:39]} 58. Kb5 {[%emt 0:00:18]} Kf5 {[%emt 0:00:28]} 59. Kc6 {[%emt 0:00:23]} e5 {[%emt 0:00:18]} 60. Bd6 {[%emt 0:01:39]} exd4 {[%emt 0:00:35]} 61. Bxb8 {[%emt 0:00:13]} d3 {[%emt 0:00:04]} 62. Bf4 {[%emt 0:00:11]} Kxf4 {[%emt 0:01:19]} 63. b7 {[%emt 0:00:07]} d2 {[%emt 0:00:05]} 64. b8=Q+ {[%emt 0:00:09]} Ke3 {[%emt 0:00:12]} 65. Qe5+ {[%emt 0:00:37]} Kd3 {[%emt 0:00:15]} 66. Qd5+ {[%emt 0:00:28]} Kc2 {[%emt 0:00:31]} 67. Qc4+ {[%emt 0:00:29]} Kb2 {[%emt 0:00:26]} 68. Qf1 {[%emt 0:00:30]} Kc2 {[%emt 0:00:14]} 69. Qe2 {[%emt 0:00:19]} Kc1 {[%emt 0:00:09]} 70. Qc4+ {[%emt 0:00:54]} Kb2 {[%emt 0:00:12]} 71. Qd3 {[%emt 0:00:15]} Kc1 {[%emt 0:00:07]} 72. Qc3+ {[%emt 0:00:05]} Kd1 {[%emt 0:00:08]} 73. Kc5 {[%emt 0:00:08]} Ke2 {[%emt 0:00:15]} 74. Qc4+ {[%emt 0:00:22]} Kf2 {[%emt 0:00:11]} 75. Qd3 {[%emt 0:00:16]} 1-0

[Event "CZE-ch Youth B12 2022"]
[Site "Luhacovice"]
[Date "2022.03.19"]
[Round "9.9"]
[White "Mydlar, Matej"]
[Black "Tejnor, Martin"]
[Result "1-0"]
[ECO "B92"]
[WhiteElo "1554"]
[BlackElo "1367"]
[Annotator "NA"]
[PlyCount "49"]
[EventDate "2022.03.12"]
[EventType "swiss"]
[EventCountry "CZE"]
[SourceTitle "playchess.com"]
[Source "ChessBase"]
[SourceQuality "1"]
[TimeControl "5400+30"]

1. e4 {[%emt 0:00:12]} c5 {[%emt 0:00:02]} 2. Nf3 {[%emt 0:00:17]} d6 {[%emt 0:00:06]} 3. d4 {[%emt 0:00:45]} cxd4 {[%emt 0:00:04]} 4. Nxd4 {[%emt 0:00:48]} Nf6 {[%emt 0:00:07]} 5. Nc3 {[%emt 0:00:09]} a6 {[%emt 0:00:05]} 6. Be2 {[%emt 0:00:50]} b5 {[%emt 0:00:10]} 7. Bf3 {[%emt 0:01:01]} e5 {[%emt 0:00:50]} 8. Nf5 {[%emt 0:01:21]} Nc6 {[%emt 0:00:26]} 9. Bg5 {[%emt 0:04:12]} Ra7 {[%emt 0:00:51]} 10. Qd2 {[%emt 0:04:17]} Bxf5 {[%emt 0:00:28]} 11. exf5 {[%emt 0:00:14]} Nd4 {[%emt 0:00:02]} 12. O-O-O {[%emt 0:05:00]} Rc7 {[%emt 0:00:34]} 13. Bxf6 {[%emt 0:03:51]} gxf6 {[%emt 0:00:27]} 14. Qe3 {[%emt 0:04:15]} Nxf5 {[%emt 0:01:08]} 15. Qb6 {[%emt 0:01:24]} Nd4 {[%emt 0:03:10]} 16. Rxd4 {[%emt 0:01:40]} exd4 {[%emt 0:01:59]} 17. Re1+ {[%emt 0:00:09]} Be7 {[%emt 0:00:14]} 18. Nd5 {[%emt 0:00:35]} Rd7 {[%emt 0:00:47]} 19. Nxf6+ {[%emt 0:00:17]} Kf8 {[%emt 0:00:25]} 20. Nxd7+ {[%emt 0:00:36]} Qxd7 {[%emt 0:00:12]} 21. Qxd4 {[%emt 0:00:31]} Bg5+ {[%emt 0:00:47]} 22. Kb1 {[%emt 0:02:20]} f6 {[%emt 0:01:11]} 23. h4 {[%emt 0:03:43]} Bh6 {[%emt 0:01:11]} 24. Qxf6+ {[%emt 0:00:09]} Kg8 {[%emt 0:00:06]} 25. Bd5+ {[%emt 0:00:31]} 1-0

[Event "CZE-ch Youth B12 2022"]
[Site "Luhacovice"]
[Date "2022.03.19"]
[Round "9.10"]
[White "Ruzicka, Oto"]
[Black "Sotek, Simon"]
[Result "0-1"]
[ECO "C30"]
[WhiteElo "1233"]
[BlackElo "1280"]
[Annotator "NA"]
[PlyCount "72"]
[EventDate "2022.03.12"]
[EventType "swiss"]
[EventCountry "CZE"]
[SourceTitle "playchess.com"]
[Source "ChessBase"]
[SourceQuality "1"]
[TimeControl "5400+30"]

1. e4 {[%emt 0:00:07]} e5 {[%emt 0:00:05]} 2. f4 {[%emt 0:00:20]} d6 {[%emt 0:00:44]} 3. Nf3 {[%emt 0:00:48]} Nc6 {[%emt 0:00:24]} 4. Bb5 {[%emt 0:00:55]} Bg4 {[%emt 0:02:39]} 5. O-O {[%emt 0:01:09]} Nf6 {[%emt 0:00:22]} 6. Nc3 {[%emt 0:00:27]} Be7 {[%emt 0:01:12]} 7. d3 {[%emt 0:00:50]} O-O {[%emt 0:00:27]} 8. Bxc6 {[%emt 0:01:28]} bxc6 {[%emt 0:00:12]} 9. Be3 {[%emt 0:00:17]} Nd7 {[%emt 0:01:54]} 10. Qd2 {[%emt 0:01:23]} f5 {[%emt 0:03:31]} 11. Rae1 {[%emt 0:05:22]} Bf6 {[%emt 0:04:02]} 12. h3 {[%emt 0:05:06]} Bxf3 {[%emt 0:00:41]} 13. Rxf3 {[%emt 0:00:11]} fxe4 {[%emt 0:01:30]} 14. Nxe4 {[%emt 0:00:50]} exf4 {[%emt 0:03:29]} 15. Nxf6+ {[%emt 0:02:49]} Qxf6 {[%emt 0:00:50]} 16. Bxf4 {[%emt 0:01:13]} Qxb2 {[%emt 0:02:10]} 17. Re7 {[%emt 0:02:10]} Nf6 {[%emt 0:01:25]} 18. Rxc7 {[%emt 0:05:40]} Qb6+ {[%emt 0:00:11]} 19. Be3 {[%emt 0:02:19]} Qxc7 {[%emt 0:00:15]} 20. Rg3 {[%emt 0:00:45]} Rf7 {[%emt 0:01:21]} 21. Qe2 {[%emt 0:02:21]} Raf8 {[%emt 0:01:13]} 22. Bd4 {[%emt 0:06:25]} d5 {[%emt 0:02:37]} 23. Rf3 {[%emt 0:06:47]} c5 {[%emt 0:03:08]} 24. Bc3 {[%emt 0:01:21]} d4 {[%emt 0:00:43]} 25. Bd2 {[%emt 0:00:39]} Qe7 {[%emt 0:00:53]} 26. Qd1 {[%emt 0:04:28]} Nd7 {[%emt 0:00:40]} 27. Rxf7 {[%emt 0:04:38]} Qxf7 {[%emt 0:00:14]} 28. Qg4 {[%emt 0:01:34]} Qf2+ {[%emt 0:01:53]} 29. Kh2 {[%emt 0:00:07]} Qxd2 {[%emt 0:00:29]} 30. Qxd7 {[%emt 0:00:14]} Qxc2 {[%emt 0:00:28]} 31. Qe6+ {[%emt 0:03:16]} Kh8 {[%emt 0:00:10]} 32. Qe7 {[%emt 0:00:25]} Rg8 {[%emt 0:00:23]} 33. Qxa7 {[%emt 0:01:00]} Qxd3 {[%emt 0:00:17]} 34. Qxc5 {[%emt 0:00:15]} Qc3 {[%emt 0:00:34]} 35. Qe5 {[%emt 0:01:09]} Rc8 {[%emt 0:00:20]} 36. a4 {[%emt 0:01:36]} Qc7 {[%emt 0:00:12]} 0-1

[Event "CZE-ch Youth B12 2022"]
[Site "Luhacovice"]
[Date "2022.03.19"]
[Round "9.11"]
[White "Pasek, Josef"]
[Black "Stejskal, Jakub"]
[Result "1/2-1/2"]
[ECO "A40"]
[WhiteElo "1351"]
[BlackElo "1557"]
[Annotator "NA"]
[PlyCount "61"]
[EventDate "2022.03.12"]
[EventType "swiss"]
[EventCountry "CZE"]
[SourceTitle "playchess.com"]
[Source "ChessBase"]
[SourceQuality "1"]
[TimeControl "5400+30"]

1. d4 {[%emt 0:00:03]} e6 {[%emt 0:00:05]} 2. Nf3 {[%emt 0:01:18]} d5 {[%emt 0:00:11]} 3. g3 {[%emt 0:00:30]} c5 {[%emt 0:00:15]} 4. Bg2 {[%emt 0:01:10]} Nc6 {[%emt 0:00:29]} 5. O-O {[%emt 0:01:17]} Nf6 {[%emt 0:00:40]} 6. c4 {[%emt 0:01:02]} Be7 {[%emt 0:00:35]} 7. Nc3 {[%emt 0:01:02]} cxd4 {[%emt 0:01:58]} 8. Nxd4 {[%emt 0:02:02]} O-O {[%emt 0:01:12]} 9. cxd5 {[%emt 0:01:29]} exd5 {[%emt 0:00:27]} 10. e3 {[%emt 0:06:42]} Qd7 {[%emt 0:19:18]} 11. b3 {[%emt 0:04:33]} Rd8 {[%emt 0:07:25]} 12. Bb2 {[%emt 0:05:12]} Rb8 {[%emt 0:05:16]} 13. Nce2 {[%emt 0:13:11]} Nxd4 {[%emt 0:13:39]} 14. Nxd4 {[%emt 0:00:36]} b6 {[%emt 0:02:23]} 15. Rc1 {[%emt 0:02:29]} Bb7 {[%emt 0:02:24]} 16. Qe2 {[%emt 0:07:23]} a6 {[%emt 0:09:20]} 17. Rc2 {[%emt 0:08:42]} Rbc8 {[%emt 0:05:27]} 18. Rfc1 {[%emt 0:02:22]} Rxc2 {[%emt 0:02:34]} 19. Rxc2 {[%emt 0:00:07]} Rc8 {[%emt 0:00:04]} 20. a4 {[%emt 0:05:40]} Ne4 {[%emt 0:03:22]} 21. Bxe4 {[%emt 0:10:59]} dxe4 {[%emt 0:01:07]} 22. Rd2 {[%emt 0:00:17]} Qd5 {[%emt 0:03:23]} 23. Nb5 {[%emt 0:07:37]} Qe6 {[%emt 0:06:36]} 24. Nd4 {[%emt 0:00:31]} Qd5 {[%emt 0:01:40]} 25. Nb5 {[%emt 0:00:37]} Qf5 {[%emt 0:01:43]} 26. Nd6 {[%emt 0:02:08]} Bxd6 {[%emt 0:00:33]} 27. Rxd6 {[%emt 0:00:05]} Qc5 {[%emt 0:00:47]} 28. Qd2 {[%emt 0:00:19]} h6 {[%emt 0:00:33]} 29. Rd8+ {[%emt 0:00:44]} Rxd8 {[%emt 0:00:19]} 30. Qxd8+ {[%emt 0:00:17]} Kh7 {[%emt 0:00:06]} 31. Qd4 1/2-1/2

[Event "CZE-ch Youth B12 2022"]
[Site "Luhacovice"]
[Date "2022.03.19"]
[Round "9.12"]
[White "Knapek, Jan"]
[Black "Jansky, Adam"]
[Result "1-0"]
[ECO "C47"]
[WhiteElo "1340"]
[BlackElo "1233"]
[Annotator "NA"]
[PlyCount "141"]
[EventDate "2022.03.12"]
[EventType "swiss"]
[EventCountry "CZE"]
[SourceTitle "playchess.com"]
[Source "ChessBase"]
[SourceQuality "1"]
[TimeControl "5400+30"]

1. e4 {[%emt 0:00:58]} e5 {[%emt 0:00:04]} 2. Nf3 {[%emt 0:01:08]} Nc6 {[%emt 0:00:08]} 3. Nc3 {[%emt 0:00:40]} Nf6 {[%emt 0:00:06]} 4. d4 {[%emt 0:01:17]} exd4 {[%emt 0:01:26]} 5. Nxd4 {[%emt 0:00:58]} Bb4 {[%emt 0:00:11]} 6. Nxc6 {[%emt 0:00:59]} Bxc3+ {[%emt 0:00:18]} 7. bxc3 {[%emt 0:02:02]} bxc6 {[%emt 0:00:06]} 8. Bd3 {[%emt 0:00:12]} O-O {[%emt 0:01:20]} 9. O-O {[%emt 0:01:00]} d5 {[%emt 0:00:28]} 10. exd5 {[%emt 0:00:41]} cxd5 {[%emt 0:00:28]} 11. Bg5 {[%emt 0:01:46]} h6 {[%emt 0:02:17]} 12. Bh4 {[%emt 0:00:58]} Qd6 {[%emt 0:00:19]} 13. Qf3 {[%emt 0:02:10]} Ng4 {[%emt 0:05:17]} 14. Bg3 {[%emt 0:01:50]} Qd8 {[%emt 0:05:06]} 15. Rfd1 {[%emt 0:02:45]} Nf6 {[%emt 0:00:36]} 16. h3 {[%emt 0:02:20]} Re8 {[%emt 0:05:35]} 17. c4 {[%emt 0:02:20]} Bb7 {[%emt 0:03:14]} 18. cxd5 {[%emt 0:01:18]} Bxd5 {[%emt 0:01:54]} 19. Qf4 {[%emt 0:01:44]} c6 {[%emt 0:02:49]} 20. c4 {[%emt 0:05:46]} Nh5 {[%emt 0:01:54]} 21. Qc1 {[%emt 0:02:32]} Nxg3 {[%emt 0:00:17]} 22. cxd5 {[%emt 0:00:51]} Nh5 {[%emt 0:00:57]} 23. dxc6 {[%emt 0:01:45]} Qc7 {[%emt 0:00:19]} 24. Bc4 {[%emt 0:02:46]} Re7 {[%emt 0:04:01]} 25. Rb1 {[%emt 0:01:28]} Rb8 {[%emt 0:03:15]} 26. Rxb8+ {[%emt 0:02:01]} Qxb8 {[%emt 0:00:19]} 27. Rd7 {[%emt 0:00:49]} Rxd7 {[%emt 0:00:53]} 28. cxd7 {[%emt 0:01:04]} Qd6 {[%emt 0:00:18]} 29. Be2 {[%emt 0:01:20]} Qxd7 {[%emt 0:01:30]} 30. Bxh5 {[%emt 0:01:22]} Qb5 {[%emt 0:01:04]} 31. Bf3 {[%emt 0:01:18]} Qb8 {[%emt 0:01:02]} 32. Qc6 {[%emt 0:01:29]} Qb1+ {[%emt 0:01:43]} 33. Kh2 {[%emt 0:01:24]} Qxa2 {[%emt 0:00:32]} 34. Qe8+ {[%emt 0:01:40]} Kh7 {[%emt 0:00:04]} 35. Be4+ {[%emt 0:01:39]} g6 {[%emt 0:00:07]} 36. Bf3 {[%emt 0:01:11]} a5 {[%emt 0:00:57]} 37. Qd7 {[%emt 0:01:05]} Kg7 {[%emt 0:01:50]} 38. Qd5 {[%emt 0:00:40]} Qa1 {[%emt 0:01:37]} 39. Bd1 {[%emt 0:03:31]} a4 {[%emt 0:00:10]} 40. f4 {[%emt 0:00:55]} a3 {[%emt 0:00:22]} 41. Bb3 {[%emt 0:01:07]} Qf6 {[%emt 0:00:08]} 42. Qe5 {[%emt 0:00:11]} Qxe5 {[%emt 0:00:41]} 43. fxe5 {[%emt 0:00:15]} g5 {[%emt 0:00:55]} 44. e6 {[%emt 0:00:11]} fxe6 {[%emt 0:00:29]} 45. Bxe6 {[%emt 0:00:11]} Kf6 {[%emt 0:00:06]} 46. Ba2 {[%emt 0:00:08]} Kf5 {[%emt 0:00:18]} 47. Kg3 {[%emt 0:00:46]} h5 {[%emt 0:00:28]} 48. Bb1+ {[%emt 0:01:23]} Kf6 {[%emt 0:00:58]} 49. h4 {[%emt 0:01:35]} g4 {[%emt 0:00:35]} 50. Kf4 {[%emt 0:00:11]} g3 {[%emt 0:01:20]} 51. Kxg3 {[%emt 0:00:45]} Ke5 {[%emt 0:00:23]} 52. Ba2 {[%emt 0:00:36]} Ke4 {[%emt 0:00:36]} 53. Kf2 {[%emt 0:01:06]} Kf4 {[%emt 0:00:13]} 54. g3+ {[%emt 0:00:34]} Kf5 {[%emt 0:00:36]} 55. Kf3 {[%emt 0:00:22]} Kg6 {[%emt 0:00:17]} 56. Kf4 {[%emt 0:00:14]} Kf6 {[%emt 0:01:13]} 57. Bb3 {[%emt 0:00:19]} Kg6 {[%emt 0:00:40]} 58. Ke5 {[%emt 0:00:16]} Kg7 {[%emt 0:00:41]} 59. Kf5 {[%emt 0:00:40]} Kh6 {[%emt 0:00:06]} 60. Kf6 {[%emt 0:00:15]} Kh7 {[%emt 0:00:34]} 61. Kg5 {[%emt 0:01:17]} Kg7 {[%emt 0:00:09]} 62. Kxh5 {[%emt 0:00:27]} Kh7 {[%emt 0:00:05]} 63. g4 {[%emt 0:00:15]} Kg7 {[%emt 0:00:05]} 64. g5 {[%emt 0:00:50]} Kh7 {[%emt 0:00:07]} 65. g6+ {[%emt 0:00:40]} Kg7 {[%emt 0:00:16]} 66. Kg5 {[%emt 0:00:19]} a2 {[%emt 0:00:23]} 67. Bxa2 {[%emt 0:00:18]} Kh8 {[%emt 0:00:04]} 68. Bb1 {[%emt 0:00:29]} Kg8 {[%emt 0:00:13]} 69. Kh6 {[%emt 0:00:37]} Kh8 {[%emt 0:00:22]} 70. g7+ {[%emt 0:00:07]} Kg8 {[%emt 0:00:01]} 71. Ba2# {[%emt 0:00:14]} 1-0